Cogmind - Beta 13 @@@ ROGUE MODE // 2024.03.02 @ 19:13:21 Player: Hekatonkheires Result: Self-destructed Performance ------------- Evolutions (2) 1000 Regions Visited (5) 1000 Robots Destroyed (8) 40 Value Destroyed (118) 118 Prototype IDs (23) 460 Alien Tech Used (0) 0 Bonus (300) 300 TOTAL SCORE: 2918 Bonus ------- Aligned with FarCom 300 Cogmind --------- Core Integrity 379/550 Matter 238/300 Energy 100/100 System Corruption 1% Temperature Cool (0) Movement Walking (100) Location -8/Materials Parts ------- > --- POWER (1) -------- (None) > --- PROPULSION (4) --- Aluminum Leg Potential Leg Potential Leg > --- UTILITY (4) ------ Medium Storage Unit Sensor Array > --- WEAPON (2) ------- (None) > --- INVENTORY (10) --- Ion Engine Aluminum Leg Wheel Wheel Improved Sensor Array Improved Sensor Array Pulse Rifle Pulse Rifle Mini Grenade Launcher Mini Grenade Launcher Peak State ------------ > --- POWER ------------ Light Angular Momentum Engine > --- PROPULSION ------- Aluminum Leg Carbon-fiber Leg Potential Leg Potential Leg > --- UTILITY ---------- Medium Storage Unit Sensor Array Improved Sensor Array > --- WEAPON ----------- Pulse Rifle Pulse Rifle > --- INVENTORY -------- Ion Engine Aluminum Leg Wheel Wheel Improved Sensor Array Improved Sensor Array Pulse Rifle Pulse Rifle Mini Grenade Launcher Mini Grenade Launcher [Rating: 42] Favorites ----------- Power Ion Engine Engine Ion Engine Propulsion Potential Leg Leg Potential Leg Wheel Wheel Utility Sensor Array Device Sensor Array Storage Medium Storage Unit Weapon Medium Laser Energy Gun Medium Laser Build | -11 -10 -10 -10 -9 -8 ------- Run | Yrd Mat Min Exi Min Mat Slots Evolved 4 | . . . . . 4 Power . | . . . . . . Propulsion 2 | . . . . . 2 Utility 2 | . . . . . 2 Weapon . | . . . . . . Parts Attached 25 | 7 2 . 3 4 9 Power 4 | 1 . . . 2 1 Engine 4 | 1 . . . 2 1 Core . | . . . . . . Reactor . | . . . . . . Propulsion 10 | 2 1 . 2 . 5 Treads . | . . . . . . Leg 7 | . . . 2 . 5 Wheel 3 | 2 1 . . . . Hover . | . . . . . . Flight . | . . . . . . Utility 5 | 1 1 . 1 1 1 Device 3 | . 1 . . 1 1 Storage 2 | 1 . . 1 . . Processor . | . . . . . . Hackware . | . . . . . . Protection . | . . . . . . Artifact . | . . . . . . Weapon 6 | 3 . . . 1 2 Energy Gun 6 | 3 . . . 1 2 Energy Cannon . | . . . . . . Ballistic Gun . | . . . . . . Ballistic Cannon . | . . . . . . Launcher . | . . . . . . Special Weapon . | . . . . . . Impact Weapon . | . . . . . . Slashing Weapon . | . . . . . . Piercing Weapon . | . . . . . . Special Melee Weapon . | . . . . . . Unidentified Prototypes . | . . . . . . Parts Lost 6 | . . . . 1 5 Power 1 | . . . . . 1 Propulsion 1 | . . . . . 1 Utility 2 | . . . . 1 1 Weapon 2 | . . . . . 2 Highest Loss Streak 5 | . . . . 1 5 To Critical Strikes . | . . . . . . Average Slot Usage (%) 96 | . 98 100 100 99 89 Engine 12 | . 14 14 14 14 9 Leg 23 | . . . 19 28 35 Wheel 6 | . 28 28 8 . . Device 14 | . 12 14 14 13 17 Storage 12 | . 14 14 14 14 9 Energy Gun 24 | . 28 28 28 28 17 Naked Turns . | . . . . . . Heaviest Build 27 | 14 14 14 19 25 27 Greatest Support 85 | 26 26 20 60 60 85 Greatest Overweight (x) . | . . . . . . Average Overweight (x) . | . . . . . . Largest Inventory Capacity 10 | 8 8 8 10 10 10 Average Capacity 9 | 7 8 8 8 10 10 Most Carried 10 | 6 8 8 8 10 10 Average Carried 8 | 3 6 8 7 8 9 Final Capacity 10 | 8 8 8 10 10 10 Final Carried 10 | 6 8 8 8 10 10 Class Distribution -------------------- 59% | Skirmisher 40% | Mutant Dominant Class ---------------- Mutant | -10/Materials Mutant | -10/Mines Mutant | -10/Exiles Skirmisher | -9/Mines Skirmisher | -8/Materials Resources | -11 -10 -10 -10 -9 -8 ----------- Run | Yrd Mat Min Exi Min Mat Matter Collected 377 | 215 . 32 . 122 8 Remotely . | . . . . . . Salvage Created 222 | . . . . 147 75 Parts 10 | . . . . 5 5 Haulers Intercepted . | . . . . . . Recyclers Shooed . | . . . . . . Parts Field Recycled . | . . . . . . Retrieved Matter . | . . . . . . Parts Self-Destructed . | . . . . . . Prevented . | . . . . . . Kills | -11 -10 -10 -10 -9 -8 ------- Run | Yrd Mat Min Exi Min Mat Combat Hostiles Destroyed 13 | . . . . 10 3 Guns 13 | . . . . 10 3 Classes Destroyed 4 | . . . . 3 1 Worker 1 | . . . . 1 . Swarmer 6 | . . . . 4 2 Grunt 1 | . . . . . 1 Assembled 6 | . . . . 6 . Best Kill Streak 4 | . . . . 4 3 Combat Bots Only 4 | . . . . 4 3 Max Kills in Single Turn 1 | . . . . 1 1 Gunslinging . | . . . . . . Exploded . | . . . . . . Melee . | . . . . . . Uniques/NPCs Destroyed . | . . . . . . Combat | -11 -10 -10 -10 -9 -8 -------- Run | Yrd Mat Min Exi Min Mat Hostile Shots Fired 81 | . 1 . . 31 49 Missed 15 | . . . . 8 7 Damage Taken 999 | . 10 . . 319 670 Core 199 | . . . . 28 171 Absorbed by Shields . | . . . . . . Regen/Repaired (Parts) 52 | . . . . . 52 Core Remaining (%) 94 | 100 . . . 88 . Volleys Fired 37 | . 3 . . 24 10 Largest 2 | . 2 . . 2 2 Hottest 126 | . 90 . . 115 126 Shots Fired 74 | . 6 . . 48 20 Gun 74 | . 6 . . 48 20 Cannon . | . . . . . . Launcher . | . . . . . . Special . | . . . . . . Kinetic . | . . . . . . Thermal 74 | . 6 . . 48 20 Explosive . | . . . . . . Electromagnetic . | . . . . . . Robot Hit Streak 7 | . 1 . . 7 7 Robot Miss Streak 4 | . 3 . . 4 2 Penetration Max . | . . . . . . Secondary Targets 2 | . . . . 2 . Max Gunslinging Chain 1 | . . . . 1 . Shots Hit Robots 46 | . 1 . . 32 13 Core Hits 24 | . . . . 19 5 Critical Kills . | . . . . . . Critical Parts Destroyed . | . . . . . . Critical Strikes 1 | . . . . . 1 Burn 1 | . . . . . 1 Melee Attacks . | . . . . . . Impact . | . . . . . . Slashing . | . . . . . . Piercing . | . . . . . . Sneak Attacks . | . . . . . . Combat Hostiles . | . . . . . . Follow-up Attacks . | . . . . . . Damage Inflicted 623 | . 13 . . 389 221 Guns 606 | . 13 . . 373 220 Cannons . | . . . . . . Explosions . | . . . . . . Melee . | . . . . . . Ramming 17 | . . . . 16 1 Kinetic . | . . . . . . Thermal 606 | . 13 . . 373 220 Explosive . | . . . . . . Electromagnetic . | . . . . . . Impact . | . . . . . . Slashing . | . . . . . . Piercing . | . . . . . . Highest Corruption 2 | . . . . 2 1 Average Corruption 1 | . . . . 2 1 Corruption Purged . | . . . . . . Corruption Blocked . | . . . . . . Effects 6 | . . . . 6 . Message Errors 2 | . . . . 2 . Matter Fused 2 | . . . . 2 . Heat Flow Errors 1 | . . . . 1 . Energy Discharges 1 | . . . . 1 . Overload Shots . | . . . . . . Overflow Damage . | . . . . . . Projectiles . | . . . . . . Explosions . | . . . . . . Melee . | . . . . . . Knockbacks . | . . . . . . Impact . | . . . . . . Kinetic . | . . . . . . Secondary . | . . . . . . Self-Inflicted Damage . | . . . . . . Shots . | . . . . . . Rammed . | . . . . . . Targets Rammed 2 | . . . . 1 1 Kicked 2 | . . . . 1 1 Crushed . | . . . . . . Highest Temperature 288 | . 80 . . 270 288 Average Temperature 112 | . 35 . . 104 145 Received Heat Transfer 215 | . 6 . . 20 189 Effects 2 | . . . . . 2 Energy Bleed 1 | . . . . . 1 Interference 1 | . . . . . 1 Siege Activations . | . . . . . . Robots Corrupted . | . . . . . . Combat Hostiles . | . . . . . . Parts Fried . | . . . . . . Impact Corruptions . | . . . . . . Robots Melted . | . . . . . . Combat Hostiles . | . . . . . . Parts Melted 5 | . . . . 2 3 Heat Transferred 1535 | . 37 . . 943 555 Parts Sabotaged . | . . . . . . Parts Stolen . | . . . . . . Parts Stripped . | . . . . . . Power Chain Reactions . | . . . . . . Alert | -11 -10 -10 -10 -9 -8 ------- Run | Yrd Mat Min Exi Min Mat Peak Influence 105 | . 53 20 . 105 95 Initial 20 | . . 20 . . 3 Average 32 | . 40 20 . 61 8 Maximum Alert Level . | . . . . . . Low Security (%) 100 | 100 100 100 . 100 100 Level 1 . | . . . . . . Level 2 . | . . . . . . Level 3 . | . . . . . . Level 4 . | . . . . . . Level 5 . | . . . . . . High Security . | . . . . . . Max Security . | . . . . . . Squads Dispatched 3 | . 2 . . . 1 Investigation 1 | . 1 . . . . Extermination . | . . . . . . Reinforcement 2 | . 1 . . . 1 Assault . | . . . . . . Garrison . | . . . . . . Intercept . | . . . . . . Searches Triggered . | . . . . . . Construction Impeded . | . . . . . . Haulers Reinforced . | . . . . . . Active Scanning Responses . | . . . . . . Cargo Convoy Interrupts . | . . . . . . Stealth | -11 -10 -10 -10 -9 -8 --------- Run | Yrd Mat Min Exi Min Mat Distress Signals 4 | . 1 . . 1 2 Communications Jammed . | . . . . . . Distress Signals . | . . . . . . Times Spotted 25 | . 5 . . 11 9 Peak Tracking Total 6 | . 3 . . 4 6 Tactical Retreats 4 | . 1 . . 2 1 Traps | -11 -10 -10 -10 -9 -8 ------- Run | Yrd Mat Min Exi Min Mat Traps Triggered 2 | . . . . . 2 Indirectly . | . . . . . . Trap Hack Attempts . | . . . . . . Triggered . | . . . . . . Disarmed . | . . . . . . Reprogrammed . | . . . . . . Reused . | . . . . . . Traps Extracted . | . . . . . . Installed . | . . . . . . Triggered . | . . . . . . Machines | -11 -10 -10 -10 -9 -8 ---------- Run | Yrd Mat Min Exi Min Mat Machines Disabled 1 | . . . . . 1 Max in Single Turn 1 | . . . . . 1 Machines Repaired . | . . . . . . Machines Dismantled . | . . . . . . Machines Sabotaged . | . . . . . . Overloaded Fab Kills . | . . . . . . Hacking | -11 -10 -10 -10 -9 -8 --------- Run | Yrd Mat Min Exi Min Mat Machines Accessed 14 | . 5 . 4 1 4 Terminals 8 | . 5 . . 1 2 Fabricators . | . . . . . . Repair Stations 1 | . . . . . 1 Recycling Units . | . . . . . . Scanalyzers 1 | . . . . . 1 Garrison Access . | . . . . . . Total Hacks 47 | . 23 . 11 2 11 Successful 30 | . 12 . 11 1 6 Failed 17 | . 11 . . 1 5 Catastrophic . | . . . . . . Database Lockouts . | . . . . . . Manual 11 | . 5 . 1 2 3 Terminals 29 | . 23 . . 2 4 Fabricators . | . . . . . . Repair Stations 3 | . . . . . 3 Recycling Units . | . . . . . . Scanalyzers 4 | . . . . . 4 Garrison Access . | . . . . . . Terminal Hacks 19 | . 8 . 11 . . Record 11 | . 1 . 10 . . Robot Analysis 1 | . 1 . . . . Locate Traps 1 | . 1 . . . . Dispatch Records 1 | . 1 . . . . Maintenance Status 1 | . 1 . . . . Hauler Manifests 1 | . 1 . . . . Zone Layout 2 | . 2 . . . . Derelict Proto ID Bank 1 | . . . 1 . . Fabricator Hacks . | . . . . . . Repair Station Hacks 2 | . . . . . 2 Scan Component 1 | . . . . . 1 Repair 1 | . . . . . 1 Recycling Unit Hacks . | . . . . . . Scanalyzer 3 | . . . . . 3 Insert Component 2 | . . . . . 2 Analyze 1 | . . . . . 1 Garrison Access Hacks . | . . . . . . Unauthorized Hacks 6 | . 4 . . 1 1 Terminals 6 | . 4 . . 1 1 Botnet 6 | . 4 . . 1 1 Fabricators . | . . . . . . Repair Stations . | . . . . . . Recycling Units . | . . . . . . Scanalyzers . | . . . . . . Garrison Access . | . . . . . . Data Cores Recovered . | . . . . . . Used . | . . . . . . Hacking Detections 9 | . 5 . . 1 3 Full Trace Events 1 | . 1 . . . . Feedback Events . | . . . . . . Feedback Blocked . | . . . . . . Robot Schematics Acquired . | . . . . . . Robots Built . | . . . . . . Authchips . | . . . . . . Time . | . . . . . . Total Robot Build Rating . | . . . . . . Part Schematics Acquired 1 | . . . . . 1 Parts Built . | . . . . . . Authchips . | . . . . . . Time . | . . . . . . Total Part Build Rating . | . . . . . . Parts Repaired 1 | . . . . . 1 Time 50 | . . . . . 50 Parts Recycled . | . . . . . . Recycled Matter . | . . . . . . Retrieved Matter . | . . . . . . Retrieved Components . | . . . . . . Parts Scanalyzed 1 | . . . . . 1 Part Schematics Acquired 1 | . . . . . 1 Parts Damaged . | . . . . . . Bothacking | -11 -10 -10 -10 -9 -8 ------------ Run | Yrd Mat Min Exi Min Mat Used RIF Installer . | . . . . . . Robots Hacked . | . . . . . . Non-combat . | . . . . . . Combat . | . . . . . . Robot Hacks Applied . | . . . . . . Relay Couplers Released . | . . . . . . Fabnet Peak Effective % . | . . . . . . Robots Rewired . | . . . . . . Allies Hacked . | . . . . . . Hacks Repelled . | . . . . . . Allies | -11 -10 -10 -10 -9 -8 -------- Run | Yrd Mat Min Exi Min Mat Total Allies 3 | . . . . 3 . Largest Group 3 | . . . . 3 3 Highest-Rated Group 40 | . . . . 40 40 Highest-Rated Ally 16 | . . . . 16 16 Total Orders . | . . . . . . Ally Attacks 15 | . . . . . 15 Total Damage 183 | . . . . . 183 Kills 1 | . . . . . 1 Allies Corrupted . | . . . . . . Allies Melted . | . . . . . . Intel | -11 -10 -10 -10 -9 -8 ------- Run | Yrd Mat Min Exi Min Mat Robot Analysis Total 1 | . 1 . . . . Derelict Logs Recovered 1 | . . 1 . . . Drone Launches . | . . . . . . Drone Recoveries . | . . . . . . Exploration | -11 -10 -10 -10 -9 -8 ------------- Run | Yrd Mat Min Exi Min Mat Turns Passed 2238 | 64 166 222 438 676 672 Spaces Moved 1500 | 54 142 278 492 280 254 Core 2 | 2 . . . . . Treads . | . . . . . . Legs 872 | . . . 338 280 254 Wheels 626 | 52 142 278 154 . . Hover . | . . . . . . Flight . | . . . . . . Fastest Speed 50 | 50 80 80 80 90 100 Average Speed 88 | 88 82 80 86 90 104 Slowest Speed 105 | 90 90 80 90 90 105 Overloaded Moves . | . . . . . . Propulsion Burnouts . | . . . . . . Robots Hopped . | . . . . . . Cave-ins Triggered . | . . . . . . Exploration Rate (%) 41 | 3 29 64 93 45 17 Regions Visited 5 Branch Regions 3 Pre-discovered Areas 2 | . . 1 1 . . Known Exits Taken . | . . . . . . Unknown Exits Taken 5 | 1 1 1 1 1 . Scrap Searched 2 | . . 1 . 1 . Spaces Dug . | . . . . . . Terrain Destroyed . | . . . . . . Melee . | . . . . . . Projectile . | . . . . . . AOE . | . . . . . . Terrain Rammed . | . . . . . . Walls Destroyed . | . . . . . . Machines Disabled . | . . . . . . Actions | -11 -10 -10 -10 -9 -8 --------- Run | Yrd Mat Min Exi Min Mat Total 2324 | 66 183 277 502 657 639 Wait 730 | . 35 . . 339 356 Move 1495 | 53 141 277 491 279 254 Hop . | . . . . . . Pick Up 20 | 6 2 . 2 6 4 Fast Attach 10 | 6 1 . . . 3 Attach 4 | . . . . 1 3 Detach 1 | . . . . . 1 Swap 11 | 1 1 . 3 3 3 Drop 11 | . . . 3 4 4 Fire 37 | . 3 . . 24 10 Melee . | . . . . . . Ram . | . . . . . . Kick 2 | . . . . 1 1 Crush . | . . . . . . Escape Stasis . | . . . . . . Rewire 3 | . . . 3 . . Trap . | . . . . . . Miscellaneous . | . . . . . . Route ------- -11/Scrapyard -10/Materials -10/Mines (discovered 2 exits: [*Mat] / *Exi) -10/Exiles (discovered 2 exits: *Min x2) -9/Mines -8/Materials History --------- Turn | Location | Event 28 | -11/Scrapyard | Discovered new exit (range 15) 65 | -11/Scrapyard | Entered Materials 157 | -10/Materials | Discovered new exit (range 12) 231 | -10/Materials | Entered Mines 308 | -10/Mines | Build established: Mutant 397 | -10/Mines | Learned location of Mines (-9) 415 | -10/Mines | Discovered new exit (range 9) 450 | -10/Mines | Deemed a non-threat by the Exiles lab entrance 450 | -10/Mines | Discovered new exit (range 5) 453 | -10/Mines | Entered Exiles 465 | -10/Exiles | Discovered new exit (range 15) 485 | -10/Exiles | Met 8R-AWN 499 | -10/Exiles | Met EX-HEX 526 | -10/Exiles | Met EX-BIN 536 | -10/Exiles | Aligned with FarCom system 537 | -10/Exiles | Given EX-Vault access code 565 | -10/Exiles | Opened EX-Vault 578 | -10/Exiles | Found Potential Leg 580 | -10/Exiles | Found Potential Leg 604 | -10/Exiles | Warned to stay clear of 0b10 Research branches 630 | -10/Exiles | Met EX-DEC 654 | -10/Exiles | Learned location of Zion (-7) 701 | -10/Exiles | Visited The Gauntlet 882 | -10/Exiles | Discovered new exit (range 10) 891 | -10/Exiles | Left Exiles lab with Potential Leg 891 | -10/Exiles | Entered Mines 904 | -9/Mines | Met a Derelict bent on vengeance 943 | -9/Mines | Assembled infested the area 1189 | -9/Mines | Build established: Skirmisher 1510 | -9/Mines | Assisted by bots powering up and referring to "LRC-V3" 1546 | -9/Mines | Discovered new exit (range 9) 1567 | -9/Mines | Entered Materials 1567 | -8/Materials | Accompanied by 3 allies 1567 | -8/Materials | Evolved 4 slots: Propulsion x2, Utility x2 1635 | -8/Materials | Repaired Lgt. Angular Momentum Engine? 2239 | -8/Materials | Self-destructed Last Messages --------------- 02215_ K-01 Serf collects debris. 02218_ Carbon-fiber Leg destroyed. 02218_ Flight Unit melted. 02218_ S-10 Pest destroyed. 02219_ Acquired 8 matter. 02220_ K-01 Serf collects debris. 02224_ Overheating: System interference. 02224_ Pulse Rifle temporarily disabled. 02224_ Critical hit (Burn: +37). 02237_ Triggered Proton Bomb Trap. 02237_ A bubble of electromagnetic force engulfs the area. 02237_ Lgt. Angular Momentum Engine destroyed. 02237_ Proton Bomb Trap short circuited. 02237_ K-01 Serf destroyed. 02237_ A bubble of electromagnetic force engulfs the area. 02237_ A bubble of electromagnetic force engulfs the area. 02237_ Pulse Rifle destroyed. Map ----- +----------------------------------------------------+ | ?????????????????????????????????????????????????? | | ?????????????????????????????????????????????????? | | ?????????????????????????????????????????????????? | | ?????????????????????????????????????????????????? | | ?????????????????????????????????????????????????? | | ?????????????????????????????????????????????????? | | ?????????????????????????????????????????????????? | | ?????????????????????????????????????????????????? | | ????????????????????????? ?????????????????????? | | ????????????????????????? #????????????????????? | | ????????????????????????? #????????????????????? | | ????????????????????????? #????????????????????? | | ????????????????????????? +????????????????????? | | ????????????????????????? #????????????????????? | | ????????????????????????# u#????????????????????? | | ????????????????????????# #????????????????????? | | ????????????????????????# #????????????????????? | | ????????????????????????# #????????????????????? | | ????????????????????????#w #????????????????????? | | ????????????????????????# #????????????????????? | | ????????????????????????# #????????????????????? | | ????????????????????????# #????????????????????? | | ????????????????????????# #????????????????????? | | ????????????????????????# #????????????????????? | | ????????????????????????# #????????????????????? | | ????????????????????????#@=^#????????????????????? | | ????????????????????????#%! #????????????????????? | | ??????????????###########* #????????????????????? | | ??????????????# =%= ## #????????????????????? | | ??????????????# [ ##s ##???????????????????? | | ??????????????# """ # #################+### | | ??????????????# """ ! b#Y | | ??????????????# *g% T | | ??????????????# %# | | ??????????????# ] # ############# | | ??????????????# [ ############## | | ??????????????# [[ #??????# | | ??????????????##########??????# T | | ??????????????????????????????# | | ??????????????????????????????# ### ####### | | ??????????????????????????????# ????### ###?????# | | ??????????????????????????????????????#+????????# | | ?????????????????????????????????????? ?????????# | | ????????????????????????????????????? ??????????# | | ???????????????????????????????????? ???????????# | | ??????????????????????????????????? ????????????# | | ??????????????????????????????????/?????????????# | | ????????????????????????????????? #?????????????# | | ???????????????????????????????? ??????????????# | | ????????????????????????????????????????????????# | +----------------------------------------------------+ Best States ------------- Heat Dissipation 31 Energy Generation 18 Energy Capacity 250 Matter Stores 300 Matter Capacity 300 Sight Range 16 Robot Scan Range 15 Terrain Scan Density 10 Evasion (%) 57 Item Schematics ----------------- Carbon-fiber Leg | -8/Materials | Scanalyzed Robot Schematics ------------------ None Fabricated ------------ Nothing Alien Tech Used ----------------- None Achievements -------------- None Challenges ------------ None Game ------ Seed EnhancedGodShield Manual? 0 Play Time 00:36:56 Cumulative 53.2 hours Start 2024.03.02 @ 18:38:13 End 2024.03.02 @ 19:13:21 Sessions 1 Manual Loads 0 Difficulty Rogue Special Mode None Game No. 38 Rogue 38 Adventurer 0 Explorer 0 Win Type - Total 2 Types 1/0/0/1/0/0/0/0/0 Lore% 47 Gallery% 50 Achievement% 43 Wizard Run 0 Options --------- Layout 1 ASCII 0 Keyboard 0 Movement Numpad Keybinds 0 Fullscreen 1 Font 20/SmallcapsGlow Map View 50x35 Zoom Use 0% Tactical HUD 1 Map Filters NONE Filters NONE Steam 1 RUN: ccd9357a-e633-467a-ad64-9a973f51e9bb